bitfinex-derivatives/quotes_BNBF0:USTF0_20251220
["timestamp","ask_amount","ask_price","bid_price","bid_amount"]
[1766188801653,9.33561272,859.63,853.6,18.6149277]
[1766188805953,9.33561272,859.64,853.6,18.6149277]
[1766188811161,9.33561272,859.65,853.6,18.6149277]
[1766188821467,9.33561272,859.58,853.6,18.6149277]
[1766188826769,9.33561272,859.6,853.6,18.6149277]
[1766188831978,9.33561272,859.57,853.6,18.6149277]
[1766188843685,9.33561272,859.55,853.6,18.6149277]
[1766188848889,9.33561272,859.54,853.6,18.6149277]
[1766188854190,9.33561272,859.52,853.6,18.6149277]
[1766188859397,9.33561272,859.73,853.6,18.6149277]
[1766188859992,9.33561272,859.73,853.64,9.30748622]
[1766188862497,0.2031002,858.21,855.16,0.2031002]
[1766188943756,0.2031002,858.21,854.3,0.01005359]
[1766188943960,0.2031002,858.21,855.09,0.2032829]
[1766188947958,0.2031002,858.21,854.23,0.00881637]
[1766188948263,0.2031002,858.21,854.89,0.20330428]
[1766188948657,0.2031002,858.21,854.04,0.01130236]
[1766188948864,0.2031002,858.21,853.19,0.01215196]
[1766188949062,0.2031002,858.21,854.78,0.20329953]
[1766188949261,0.2031002,858.21,853.93,0.01263793]
[1766188949461,0.2031002,858.21,854.82,0.20334586]
[1766189062557,9.33561272,858.99,854.82,0.20334586]
[1766189062853,0.20327518,857.37,854.82,0.20334586]
[1766189063054,0.01413473,858.23,854.82,0.20334586]
[1766189063359,0.20327815,856.74,854.82,0.20334586]
[1766189063558,0.01461106,857.6,854.82,0.20334586]
[1766189063758,0.01275645,858.46,854.82,0.20334586]
[1766189063958,9.33561272,858.94,854.82,0.20334586]
[1766189064756,0.20327815,857.92,854.82,0.20334586]
[1766189100092,1.74937322,856.63,855.23,1.16633017]
[1766189100293,1.16624881,856.48,855.39,0.87474762]
[1766189100895,1.16624881,856.48,855.23,1.16633017]
[1766189101092,1.16624881,856.48,855.39,0.87474762]
[1766189101292,1.16624881,856.47,855.39,0.87474762]
[1766189103198,1.16624881,856.47,855.4,0.87474762]
[1766189104305,1.16624881,856.46,855.4,0.87474762]
[1766189106204,1.16624881,856.46,855.41,0.87474762]
[1766189107304,1.16624881,856.45,855.41,0.87474762]
[1766189108405,1.16624881,856.45,855.42,0.87474762]
[1766189109302,1.16624881,856.44,855.43,0.87474762]
[1766189110302,1.16624881,856.43,855.43,0.87474762]
[1766189111302,1.16624881,856.42,855.44,0.87474762]
[1766189113208,1.16624881,856.42,855.45,0.87474762]
[1766189114208,1.16624881,856.41,855.45,0.87474762]
[1766189115510,1.16624881,856.41,855.46,0.87474762]
[1766189116406,1.16624881,856.4,855.46,0.87474762]
[1766189117304,1.16624881,856.4,855.47,0.87474762]
[1766189118209,1.16624881,856.39,855.47,0.87474762]
[1766189119206,1.16624881,856.39,855.48,0.87474762]
[1766189121307,1.16624881,856.38,855.48,0.87474762]
[1766189124112,1.16624881,856.39,855.48,0.87474762]
[1766189125412,1.16624881,856.38,855.49,0.87474762]
[1766189130215,1.16624881,856.37,855.5,0.87474762]
[1766189132518,1.16624881,856.37,855.35,1.16633017]
[1766189132722,1.16624881,856.37,855.5,0.87647136]
[1766189133217,1.16624881,856.36,855.51,0.87647136]
[1766189138021,1.16624881,856.37,855.51,0.87647136]
[1766189148530,1.16624881,856.36,855.51,0.87647136]
[1766189149730,1.16624881,856.33,855.48,0.87647136]
[1766189149929,2.91562203,857.1,855.47,0.87647136]
[1766189149930,1.16624881,856.32,855.47,0.87647136]
[1766189150131,1.16624881,856.33,855.46,0.87647136]
[1766189152038,1.16624881,856.31,855.43,0.87647136]
[1766189153139,1.16624881,856.32,855.42,0.87647136]
[1766189156040,1.16624881,856.32,855.41,0.87647136]
[1766189157243,1.16624881,856.33,855.41,0.87647136]
[1766189162148,1.16624881,856.33,855.4,0.87647136]
[1766189163151,1.16624881,856.34,855.4,0.87647136]
[1766189172164,1.16624881,856.34,855.39,0.87647136]
[1766189181171,1.16624881,856.3,855.34,0.87647136]
[1766189183270,1.16624881,856.31,855.34,0.87647136]
[1766189186073,1.16624881,856.26,855.29,0.87647136]
[1766189187368,1.16624881,856.27,855.28,0.87647136]
[1766189191176,1.16624881,856.27,855.27,0.87647136]
[1766189191575,1.16624881,856.28,855.27,0.87647136]
[1766189203986,1.16624881,856.28,855.12,1.16633017]
[1766189204186,1.16624881,856.28,855.27,0.87577137]
[1766189205791,1.16624881,856.26,855.25,0.87577137]
[1766189207191,1.16624881,856.26,855.26,0.87577137]
[1766189208087,1.16624881,856.25,855.26,0.87577137]
[1766189212103,1.16624881,856.22,855.23,0.87577137]
[1766189212503,1.16624881,856.13,855.13,0.87577137]
[1766189213204,1.16624881,856.14,855.12,0.87577137]
[1766189214405,1.16624881,856.14,855.11,0.87577137]
[1766189215305,1.16624881,856.14,855.1,0.87577137]
[1766189216205,1.16624881,856.15,855.1,0.87577137]
[1766189217104,1.16624881,856.15,855.09,0.87577137]
[1766189218205,1.16624881,856.16,855.09,0.87577137]
[1766189221209,1.16624881,856.16,855.08,0.87577137]
[1766189222210,1.16624881,856.17,855.08,0.87577137]
[1766189225307,1.16624881,856.17,855.07,0.87577137]
[1766189228317,1.16624881,856.18,855.07,0.87577137]
[1766189233119,1.16624881,856.17,855.07,0.87577137]
[1766189233518,1.16624881,856.18,855.07,0.87577137]
[1766189234220,1.16624881,856.17,855.07,0.87577137]
[1766189235222,1.16624881,856.41,855.31,0.87577137]
[1766189243323,1.16624881,856.41,855.3,0.87577137]
[1766189244225,1.16624881,856.42,855.31,0.87577137]
[1766189245430,1.16624881,856.42,855.3,0.87577137]
[1766189247230,1.74937322,856.58,855.3,0.87577137]
[1766189247231,1.16624881,856.43,855.3,0.87577137]
[1766189250230,1.16624881,856.43,855.29,0.87577137]
[1766189254231,1.74937322,856.59,855.13,1.16633017]
[1766189254232,1.16624881,856.44,855.28,0.87577137]
[1766189254430,1.16624881,856.33,855.18,0.87577137]
[1766189257031,1.16624881,856.2,855.05,0.87577137]
[1766189257236,1.16624881,856.2,855.04,0.87577137]
[1766189258137,1.16624881,856.15,854.99,0.87577137]
[1766189259139,1.16624881,856.15,854.98,0.87577137]
[1766189260038,1.16624881,856.13,854.96,0.87577137]
[1766189260438,1.16624881,856.14,854.96,0.87577137]
[1766189261237,1.16624881,856.14,854.95,0.87577137]
[1766189263240,1.16624881,856.15,854.95,0.87577137]
[1766189264236,1.16624881,856.15,854.79,1.16633017]
[1766189264237,1.16624881,856.15,854.94,0.87577137]
[1766189265041,0.20338864,855.85,854.94,0.87577137]
[1766189268141,0.20338864,855.85,854.93,0.87577137]
[1766189273145,0.20338864,855.85,854.92,0.87577137]
[1766189276153,0.20338864,855.85,854.91,0.87577137]
[1766189284261,0.20338864,855.85,854.9,0.87577137]
[1766189292278,0.20338864,855.85,854.89,0.87577137]
[1766189297281,0.20338864,855.85,854.9,0.87577137]
[1766189299282,0.20338864,855.85,854.91,0.87577137]
[1766189301187,0.20338864,855.85,854.92,0.87577137]
[1766189303285,0.20338864,855.85,854.93,0.87577137]
[1766189305191,0.20338864,855.85,854.94,0.87577137]
[1766189307388,0.20338864,855.85,854.95,0.87577137]
[1766189308189,0.20338864,855.85,854.96,0.87577137]
[1766189309293,0.20338864,855.85,854.97,0.87577137]
[1766189310293,0.20338864,855.85,854.98,0.87577137]
[1766189311394,0.20338864,855.85,854.99,0.87577137]
[1766189312396,0.20338864,855.85,855.14,0.87577137]
[1766189313191,0.20338864,855.85,855.15,0.87577137]
[1766189314297,0.20338864,855.85,855.17,0.87577137]
[1766189314692,0.20338864,855.85,855.21,0.87577137]
[1766189315196,0.20338864,855.85,855.2,0.87577137]
[1766189315396,0.20338864,855.85,855.21,0.87577137]
[1766189316196,0.20338864,855.85,855.22,0.87577137]
[1766189316397,0.20338864,855.85,855.28,0.87577137]
[1766189317293,0.20331675,856.02,855.32,0.87577137]
[1766189317496,0.20331675,856.02,855.38,0.87577137]
[1766189318398,0.20331675,856.02,855.36,0.87577137]
[1766189318796,1.16624881,856.41,855.37,0.87577137]
[1766189318996,0.20329062,856.12,855.41,0.87577137]
[1766189319196,0.20329062,856.12,855.38,0.87577137]
[1766189320196,0.20329062,856.12,855.37,0.87577137]
[1766189320397,0.20329062,856.12,855.36,0.87577137]
[1766189321198,0.20329062,856.12,855.35,0.87577137]
[1766189322304,0.20329062,856.12,855.33,0.87577137]
[1766189323201,0.20329062,856.12,855.32,0.87577137]
[1766189324504,0.20329062,856.12,855.31,0.87577137]
[1766189325305,0.20329062,856.12,855.3,0.87577137]
[1766189326206,0.20329062,856.12,855.29,0.87577137]
[1766189327210,0.20329062,856.12,855.28,0.87577137]
[1766189329305,0.20329062,856.12,855.27,0.87577137]
[1766189330410,0.20329062,856.12,855.26,0.87577137]
[1766189332317,0.20329062,856.12,855.25,0.87577137]
[1766189334323,0.20329062,856.12,855.24,0.87577137]
[1766189337223,0.20329062,856.12,855.23,0.87577137]
[1766189337417,0.20329062,856.12,855.22,0.87577137]
[1766189342020,0.20329062,856.12,855.26,0.87577137]
[1766189342422,0.20329062,856.12,855.32,0.87577137]
[1766189344128,0.20329062,856.12,855.31,0.87577137]
[1766189347225,0.20329062,856.12,855.3,0.87577137]
[1766189352533,0.20329062,856.12,855.24,0.87577137]
[1766189354232,0.20329062,856.12,855.25,0.87577137]
[1766189356336,0.20329062,856.12,855.24,0.87577137]
[1766189357338,0.20329062,856.12,855.09,1.16633017]
[1766189357339,0.20329062,856.12,855.16,0.87577137]
[1766189358238,0.20329062,856.12,855.17,0.87577137]
[1766189358638,0.20329062,856.12,855.16,0.87577137]
[1766189360440,0.20329062,856.12,855.17,0.87577137]
[1766189361241,0.20329062,856.12,855.18,0.87577137]
[1766189363242,0.20329062,856.12,855.19,0.87577137]
[1766189364138,0.20329062,856.12,855.2,0.87577137]
[1766189365439,0.20329062,856.12,855.21,0.87577137]
[1766189366240,0.20329062,856.12,855.22,0.87577137]
[1766189367345,0.20329062,856.12,855.23,0.87577137]
[1766189367645,0.20329062,856.12,855.14,0.87577137]
[1766189368246,0.20329062,856.12,855.15,0.87577137]
[1766189369241,0.20329062,856.12,855.16,0.87577137]
[1766189370342,0.20329062,856.12,855.17,0.87577137]
[1766189371448,0.20329062,856.12,855.18,0.87577137]
[1766189371948,0.20329062,856.12,855.25,0.87577137]
[1766189372149,0.20329062,856.12,855.27,0.87577137]
[1766189374148,0.20329062,856.12,855.28,0.87577137]
[1766189375253,0.20329062,856.12,855.29,0.87577137]
[1766189381457,0.20329062,856.12,855.32,0.87577137]
[1766189381656,0.20329062,856.12,855.4,0.87577137]
[1766189391170,0.20329062,856.12,855.24,1.16633017]
[1766189391171,0.20329062,856.12,855.35,0.87577137]
[1766189391373,0.20329062,856.12,855.31,0.87577137]
[1766189391669,0.20329062,856.12,855.15,1.16633017]
[1766189391670,0.20329062,856.12,855.29,0.87577137]
[1766189392073,0.20329062,856.12,855.25,0.87577137]
[1766189392469,0.20329062,856.12,855.22,0.87577137]
[1766189393074,0.20329062,856.12,855.21,0.87577137]
[1766189396273,0.20329062,856.12,855.2,0.87577137]
[1766189399776,0.20329062,856.12,855.18,0.87577137]
[1766189401177,0.20329062,856.12,855.17,0.87577137]
[1766189402081,0.20329062,856.12,855.13,0.87577137]
[1766189409087,0.20329062,856.12,855.14,0.87577137]
[1766189409386,0.20329062,856.12,855.13,0.87577137]
[1766189410087,0.20329062,856.12,855.14,0.87577137]
[1766189414095,0.20329062,856.12,855.15,0.87577137]
[1766189414293,0.20329062,856.12,855.14,0.87577137]
[1766189415194,0.20329062,856.12,855.15,0.87577137]
[1766189429213,0.20329062,856.12,855.14,0.87577137]
[1766189438117,0.20329062,856.12,855.15,0.87577137]
[1766189442917,0.20329062,856.12,855.0,1.16633017]
[1766189443121,0.20329062,856.12,855.16,0.87486946]
[1766189443324,0.20329062,856.12,855.15,0.87486946]
[1766189444123,0.20329062,856.12,855.16,0.87486946]
[1766189445121,0.20329062,856.12,855.17,0.87486946]
[1766189447125,0.20329062,856.12,855.18,0.87486946]
[1766189448124,0.20329062,856.12,854.63,0.20338864]
[1766189448125,0.20329062,856.12,855.19,0.87486946]
[1766189449122,0.20329062,856.12,855.2,0.87486946]
[1766189450126,0.20329062,856.12,855.22,0.87486946]
[1766189451124,0.20329062,856.12,855.24,0.87486946]
[1766189453027,0.20329062,856.12,855.25,0.87486946]
[1766189456234,0.20329062,856.12,855.26,0.87486946]
[1766189459233,0.20329062,856.12,855.27,0.87486946]
[1766189466837,0.20329062,856.12,855.28,0.87486946]
[1766189482745,0.20329062,856.12,855.31,0.87486946]
[1766189483346,0.20329062,856.12,855.3,0.87486946]
[1766189490258,0.20329062,856.12,855.29,0.87486946]
[1766189490457,0.20329062,856.12,855.39,0.87486946]
[1766189491353,0.20329062,856.12,855.38,0.87486946]
[1766189491554,0.20329062,856.12,855.4,0.87486946]
[1766189492453,0.20329062,856.12,855.23,1.16633017]
[1766189492454,0.20329062,856.12,855.39,0.87486946]
[1766189493453,0.20329062,856.12,855.38,0.87486946]
[1766189494354,0.20329062,856.12,855.37,0.87486946]
[1766189496554,0.20329062,856.12,855.21,1.16633017]
[1766189496555,0.20329062,856.12,855.36,0.87486946]
[1766189498258,0.20329062,856.12,855.35,0.87486946]
[1766189500059,0.20329062,856.12,855.2,1.16633017]
[1766189500060,0.20329062,856.12,855.36,0.87486946]
[1766189501263,0.20329062,856.12,855.35,0.87486946]
[1766189502163,0.20329062,856.12,855.41,0.87486946]
[1766189503365,0.20329062,856.12,855.4,0.87486946]
[1766189504267,0.20329062,856.12,855.39,0.87486946]
[1766189506270,0.20329062,856.12,855.38,0.87486946]
[1766189507169,0.20329062,856.12,855.23,1.16633017]
[1766189507371,0.20329062,856.12,855.38,0.87489159]
[1766189509269,0.20329062,856.12,855.37,0.87489159]
[1766189513074,0.20329062,856.12,855.36,0.87489159]
[1766189516480,1.16624881,856.66,855.52,0.87489159]
[1766189516680,0.20326628,856.28,855.54,0.87489159]
[1766189516975,1.16624881,856.68,855.54,0.87489159]
[1766189517274,0.20324432,856.28,855.53,0.87489159]
[1766189517477,1.16624881,856.69,855.53,0.87489159]
[1766189518280,1.16624881,856.7,855.52,0.87489159]
[1766189518579,0.20324432,856.41,855.52,0.87489159]
[1766189519279,0.20324432,856.41,855.51,0.87489159]
[1766189520384,0.20324432,856.41,855.57,0.87489159]
[1766189521282,0.20324432,856.41,855.56,0.87489159]
[1766189521590,0.20324432,856.41,855.57,0.87489159]
[1766189521891,0.20324432,856.41,855.66,0.87489159]
[1766189522282,0.20324432,856.41,855.65,0.87489159]
[1766189523387,0.20324432,856.41,855.34,1.74949525]
[1766189523388,0.20324432,856.41,855.63,0.87489159]
[1766189524487,0.20324432,856.41,855.62,0.87489159]
[1766189525289,0.20324432,856.41,855.6,0.87489159]
[1766189526588,0.20324432,856.41,855.62,0.87489159]
[1766189527392,0.20324432,856.41,855.61,0.87489159]
[1766189528288,0.20324432,856.41,855.6,0.87489159]
[1766189528893,0.20324432,856.41,855.63,0.87489159]
[1766189529593,0.20324432,856.41,855.62,0.87489159]
[1766189530490,0.20324432,856.41,855.61,0.87489159]
[1766189531494,0.20324432,856.41,855.6,0.87489159]
[1766189531990,0.20324432,856.41,855.55,0.87489159]
[1766189534491,0.20324432,856.41,855.54,0.87489159]
[1766189544699,0.20324432,856.41,855.55,0.87489159]
[1766189547398,0.20324432,856.41,855.56,0.87489159]
[1766189549304,0.20324432,856.41,855.57,0.87489159]
[1766189551309,0.20324432,856.41,855.58,0.87489159]
[1766189553206,0.20324432,856.41,855.6,0.87489159]
[1766189555308,0.20324432,856.41,855.61,0.87489159]
[1766189556313,0.20324432,856.41,855.71,0.87489159]
[1766189559314,0.20324432,856.41,855.72,0.87489159]
[1766189559512,1.16624881,857.09,855.72,0.87489159]
[1766189559715,0.20316956,856.63,855.72,0.87489159]
[1766189560014,1.16624881,857.09,855.72,0.87489159]
[1766189560216,0.20316897,856.63,855.72,0.87489159]
[1766189560511,1.16624881,857.09,855.72,0.87489159]
[1766189561315,1.16624881,857.08,855.73,0.87489159]
[1766189561709,0.20316897,856.75,855.73,0.87489159]
[1766189563611,0.20316897,856.75,855.79,0.87489159]
[1766189565313,0.20316897,856.75,855.8,0.87489159]
[1766189568320,0.20316897,856.75,855.81,0.87489159]
[1766189569318,0.20316897,856.75,855.82,0.87489159]
[1766189570822,0.20316897,856.75,855.9,0.87489159]
[1766189571326,0.20316897,856.75,855.96,0.87489159]
[1766189572522,0.20316897,856.75,855.97,0.87489159]
[1766189574228,0.20316897,856.75,855.98,0.87489159]
[1766189575327,0.20316897,856.75,856.0,0.87489159]
[1766189575530,0.20316897,856.75,855.99,0.87489159]
[1766189576330,0.20316897,856.75,856.0,0.87489159]
[1766189579232,0.20316897,856.75,856.01,0.87489159]
[1766189579432,0.20316897,856.75,856.0,0.87489159]
[1766189580433,1.16624881,857.21,856.0,0.87489159]
[1766189580635,1.16624881,857.32,856.11,0.87489159]
[1766189580832,0.20311442,856.91,856.13,0.87489159]
[1766189581033,1.16624881,857.34,856.13,0.87489159]
[1766189581241,0.20309901,856.89,856.12,0.87489159]
[1766189581431,1.16624881,857.43,856.2,0.87489159]
[1766189582332,1.16624881,857.44,856.19,0.87489159]
[1766189582837,0.20308953,857.13,856.19,0.87489159]
[1766189583233,0.20308953,857.13,856.17,0.87489159]
[1766189584338,0.20308953,857.13,855.31,0.00864878]
[1766189584339,0.20308953,857.13,856.16,0.87489159]
[1766189585334,0.20308953,857.13,855.3,0.01146787]
[1766189585335,0.20308953,857.13,856.15,0.87489159]
[1766189586435,0.20308953,857.13,856.14,0.87489159]
[1766189587237,0.20308953,857.13,856.13,0.87489159]
[1766189588243,0.20308953,857.13,856.12,0.87489159]
[1766189589348,0.20308953,857.13,856.11,0.87489159]
[1766189590247,0.20308953,857.13,856.1,0.87489159]
[1766189592249,0.20308953,857.13,856.09,0.87489159]
[1766189594349,0.20308953,857.13,855.93,1.16633017]
[1766189594350,0.20308953,857.13,856.08,0.87489159]
[1766189597249,0.20308953,857.13,856.07,0.87489159]
[1766189600950,0.20308953,857.13,855.99,0.87489159]
[1766189601154,0.20308953,857.13,855.95,0.87489159]
[1766189601353,0.20308953,857.13,855.93,0.87489159]
[1766189604152,0.20308953,857.13,855.94,0.87489159]
[1766189606457,0.20308953,857.13,855.95,0.87489159]
[1766189608358,0.20308953,857.13,855.96,0.87489159]
[1766189609459,0.20308953,857.13,855.97,0.87489159]
[1766189610455,0.20308953,857.13,855.98,0.87489159]
[1766189612261,0.20308953,857.13,855.99,0.87489159]
[1766189613368,0.20308953,857.13,856.0,0.87489159]
[1766189614567,0.20308953,857.13,856.01,0.87489159]
[1766189615369,0.20308953,857.13,856.02,0.87489159]
[1766189616373,0.20308953,857.13,856.03,0.87489159]
[1766189618570,0.20308953,857.13,856.04,0.87489159]
[1766189620271,0.20308953,857.13,856.05,0.87489159]
[1766189621370,0.20308953,857.13,856.06,0.87489159]
[1766189622476,0.20308953,857.13,856.07,0.87489159]
[1766189624276,0.20308953,857.13,856.08,0.87489159]
[1766189625373,0.20308953,857.13,856.09,0.87489159]
[1766189627373,0.20308953,857.13,856.1,0.87489159]
[1766189628477,0.20308953,857.13,856.11,0.87489159]
[1766189630178,0.20308953,857.13,856.12,0.87489159]
[1766189632278,0.20308953,857.13,856.13,0.87489159]
[1766189634182,0.20308953,857.13,856.19,0.87489159]
[1766189635383,0.20308953,857.13,856.26,0.87489159]
[1766189639380,0.20308953,857.13,856.27,0.87489159]
[1766189641190,0.20308953,857.13,856.26,0.87489159]
[1766189642287,0.20308953,857.13,856.11,1.16633017]
[1766189642288,0.20308953,857.13,856.27,0.87489159]
[1766189659806,0.20308953,857.13,856.18,0.87489159]
[1766189660205,0.20308953,857.13,856.19,0.87489159]
[1766189664916,0.20308953,857.13,856.18,0.87489159]
[1766189667221,0.20308953,857.13,856.15,0.87489159]
[1766189669219,0.20308953,857.13,856.15,0.8746234]
[1766189670720,0.20308953,857.13,856.14,0.8746234]
[1766189671321,1.16624881,857.12,856.08,0.8746234]
[1766189675424,1.36933834,857.13,856.08,0.8746234]
[1766189676323,1.36933834,857.13,856.07,0.8746234]
[1766189678228,1.16624881,857.12,856.07,0.8746234]
[1766189678527,1.16624881,857.12,856.06,0.8746234]
[1766189679325,1.36933834,857.13,856.06,0.8746234]
[1766189680230,1.16624881,857.12,856.06,0.8746234]
[1766189680430,1.36933834,857.13,856.06,0.8746234]
[1766189684334,1.36933834,857.13,856.05,0.8746234]
[1766189686435,0.20308953,857.13,856.05,0.8746234]
[1766189690434,1.16624881,856.92,855.75,0.8746234]
[1766189690636,1.16624881,856.85,855.75,0.8746234]
[1766189691437,1.16624881,856.87,855.73,0.8746234]
[1766189692438,1.16624881,856.89,855.71,0.8746234]
[1766189693442,1.16624881,856.91,855.7,0.8746234]
[1766189694242,1.16624881,856.91,855.69,0.8746234]
[1766189694442,1.16624881,856.92,855.68,0.8746234]
[1766189694738,1.16624881,856.91,855.68,0.8746234]
[1766189695342,1.16624881,856.93,855.67,0.8746234]
[1766189696344,1.16624881,856.94,855.66,0.8746234]
[1766189697341,1.16624881,856.95,855.65,0.8746234]
[1766189698445,1.16624881,856.95,855.64,0.8746234]
[1766189699547,1.16624881,856.96,855.63,0.8746234]
[1766189700346,1.16624881,856.93,855.6,0.8746234]
[1766189700546,1.16624881,856.8,855.48,0.8746234]
[1766189700748,1.16624881,856.8,855.47,0.8746234]
[1766189701248,1.16624881,856.82,855.46,0.8746234]
[1766189702150,1.16624881,856.83,855.44,0.8746234]
[1766189703148,1.16624881,856.85,855.43,0.8746234]
[1766189704154,1.16624881,856.86,855.42,0.8746234]
[1766189704653,1.16624881,856.88,855.44,0.8746234]
[1766189705152,1.16624881,856.88,855.43,0.8746234]
[1766189706151,1.16624881,856.89,855.43,0.8746234]
[1766189706656,1.16624881,856.94,855.47,0.8746234]
[1766189708155,1.74937322,857.1,855.47,0.8746234]
[1766189708156,1.16624881,856.95,855.47,0.8746234]
[1766189709156,1.16624881,856.95,855.46,0.8746234]
[1766189711054,1.16624881,856.96,855.46,0.8746234]
[1766189711258,1.16624881,857.02,855.53,0.8746234]
[1766189714461,1.16624881,857.01,855.54,0.8746234]
[1766189717364,1.16624881,857.0,855.55,0.8746234]
[1766189719265,1.16624881,856.99,855.56,0.8746234]
[1766189720766,0.20320931,856.64,855.56,0.8746234]
[1766189723166,0.20320931,856.64,855.57,0.8746234]
[1766189725467,0.20320931,856.64,855.58,0.8746234]
[1766189727466,0.20320931,856.64,855.59,0.8746234]
[1766189729366,0.20320931,856.64,855.6,0.8746234]
[1766189729967,1.16624881,856.95,855.6,0.8746234]
[1766189730367,0.20320931,856.62,855.6,0.8746234]
[1766189730771,1.16624881,856.95,855.6,0.8746234]
[1766189731371,1.16624881,856.94,855.6,0.8746234]
[1766189732069,0.2032099,856.61,855.61,0.8746234]
[1766189734371,0.2032099,856.61,855.62,0.8746234]
[1766189736374,0.2032099,856.61,855.63,0.8746234]
[1766189738271,0.2032099,856.61,855.64,0.8746234]
[1766189739473,0.2032099,856.61,855.65,0.8746234]
[1766189741277,0.2032099,856.61,855.66,0.8746234]
[1766189742476,0.2032099,856.61,855.67,0.8746234]
[1766189743182,0.2032099,856.61,855.75,0.8746234]
[1766189743384,0.2032099,856.61,855.79,0.8746234]
[1766189744381,0.2032099,856.61,855.8,0.8746234]
[1766189744589,0.2032099,856.61,855.85,0.8746234]
[1766189744779,0.2032099,856.61,855.86,0.8746234]
[1766189745284,0.2032099,856.61,855.92,0.8746234]
[1766189746385,0.2032099,856.61,855.93,0.8746234]
[1766189747084,0.2032099,856.61,855.92,0.8746234]
[1766189747281,0.2032099,856.61,855.94,0.8746234]
[1766189748185,0.2032099,856.61,855.93,0.8746234]
[1766189748381,0.2032099,856.61,855.94,0.8746234]
[1766189749383,0.2032099,856.61,855.95,0.8746234]
[1766189751088,0.2032099,856.61,855.94,0.8746234]
[1766189753190,0.2032099,856.61,855.93,0.8746234]
[1766189755188,0.2032099,856.61,855.92,0.8746234]
[1766189757090,0.2032099,856.61,855.91,0.8746234]
[1766189757596,0.2032099,856.61,855.94,0.8746234]
[1766189759097,0.2032099,856.61,855.93,0.8746234]
[1766189764908,0.2032099,856.61,855.91,0.8746234]
[1766189765109,0.2032099,856.61,855.86,0.8746234]
[1766189766007,0.2032099,856.61,855.83,0.8746234]
[1766189766205,0.2032099,856.61,855.84,0.8746234]
[1766189768815,0.2032099,856.61,855.89,0.8746234]
[1766189770406,0.2032099,856.61,855.39,0.2032099]
[1766189770407,0.2032099,856.61,855.83,0.8746234]
[1766189770716,0.2032099,856.61,855.69,6.69308049]
[1766189771106,0.2032099,856.61,855.58,0.8746234]
[1766189771407,0.2032099,856.61,855.57,0.8746234]
[1766189774316,0.2032099,856.61,855.56,0.8746234]
[1766189776415,0.2032099,856.61,855.59,0.8746234]
[1766189776615,0.2032099,856.61,855.61,0.8746234]
[1766189777215,0.2032099,856.61,855.45,1.16633017]
[1766189777216,0.2032099,856.61,855.63,0.8746234]
[1766189777516,0.2032099,856.61,855.65,0.8746234]
[1766189780117,0.2032099,856.61,855.68,0.8746234]
[1766189780317,0.2032099,856.61,855.79,0.8746234]
[1766189781222,1.16624881,857.02,855.79,0.8746234]
[1766189782323,1.16624881,857.02,855.8,0.8746234]
[1766189783222,1.16624881,857.02,855.79,0.8746234]
[1766189783419,1.16624881,857.02,855.64,1.16633017]
[1766189783420,1.16624881,857.02,855.8,0.8746234]
[1766189784324,1.16624881,857.01,855.8,0.8746234]
[1766189784519,1.16624881,857.02,855.8,0.8746234]
[1766189786726,0.20317549,856.72,855.8,0.8746234]
[1766189787429,0.20317549,856.72,855.81,0.8746234]
[1766189787629,0.20317549,856.72,855.79,0.8746234]
[1766189787829,0.20317549,856.72,855.78,0.8746234]
[1766189788226,0.20317549,856.72,855.79,0.8746234]
[1766189788926,0.20317549,856.72,855.74,0.8746234]
[1766189790330,0.20317549,856.72,855.77,0.8746234]
[1766189795334,0.20317549,856.72,855.78,0.8746234]
[1766189799538,0.20317549,856.72,855.77,0.8746234]
[1766189802137,0.20317549,856.72,855.78,0.8746234]
[1766189810043,0.20317549,856.72,855.75,0.8746234]
[1766189810438,0.20317549,856.72,855.67,0.8746234]
[1766189810739,0.20317549,856.72,855.66,0.8746234]
[1766189814947,0.20317549,856.72,855.65,0.8746234]
[1766189815248,0.20317549,856.72,855.66,0.8746234]
[1766189815445,0.20317549,856.72,855.65,0.8746234]
[1766189816147,0.20317549,856.72,855.66,0.8746234]
[1766189818553,0.20317549,856.72,855.6,0.8746234]
[1766189819049,0.20317549,856.72,855.59,0.8746234]
[1766189823258,0.20317549,856.72,855.6,0.8746234]
[1766189829062,0.20317549,856.72,855.67,0.8746234]
[1766189830367,0.20317549,856.72,855.68,0.8746234]
[1766189832163,0.20317549,856.72,855.73,0.8746234]
[1766189832361,0.20317549,856.72,855.74,0.8746234]
[1766189833066,0.20317549,856.72,855.82,0.8746234]
[1766189835266,0.20317549,856.72,855.85,0.8746234]
[1766189844773,0.20317549,856.72,855.77,0.8746234]
[1766189854279,0.20317549,856.72,855.78,0.8746234]
[1766189855380,0.20317549,856.72,855.77,0.8746234]
[1766189855583,0.20317549,856.72,855.78,0.8746234]
[1766189856180,0.20317549,856.72,855.69,0.8746234]
[1766189856379,0.20317549,856.72,855.68,0.8746234]
[1766189883390,0.20317549,856.72,855.69,0.8746234]
[1766189893107,0.20317549,856.72,855.72,0.8746234]
[1766189893308,0.20317549,856.72,855.77,0.8746234]
[1766189894508,0.20317549,856.72,855.67,0.8746234]
[1766189895407,0.20317549,856.72,855.68,0.8746234]
[1766189897405,1.3694243,856.72,855.68,0.8746234]
[1766189899409,1.3694243,856.72,855.69,0.8746234]
[1766189900510,1.16624881,856.71,855.69,0.8746234]